bitfinex/quotes_BTCUSD_20250830
["timestamp","ask_amount","ask_price","bid_price","bid_amount"]
[1756526582556,1.36700198,108590.0,108580.0,0.00501001]
[1756526582759,1.95216333,108590.0,108580.0,0.00501001]
[1756526584803,1.85875497,108590.0,108580.0,0.00501001]
[1756526585076,1.85975497,108590.0,108580.0,0.00501001]
[1756526586048,1.85976275,108590.0,108580.0,0.00501001]
[1756526589061,1.86024275,108590.0,108580.0,0.00501001]
[1756526589264,1.86024275,108590.0,108580.0,1e-08]
[1756526589461,1.86024275,108590.0,108580.0,0.00294001]
[1756526589615,1.86024275,108590.0,108580.0,0.00501001]
[1756526590168,1.85976275,108590.0,108580.0,0.00501001]
[1756526590525,1.70404275,108590.0,108580.0,0.00501001]
[1756526590774,1.85976275,108590.0,108580.0,0.00501001]
[1756526591167,1.36404275,108590.0,108580.0,0.00501001]
[1756526591398,1.36404275,108590.0,108580.0,0.61860734]
[1756526591399,0.18519,108590.0,108580.0,0.61860734]
[1756526591677,0.18519,108590.0,108580.0,0.18920599]
[1756526592100,0.18419,108590.0,108580.0,0.61860734]
[1756526592539,0.18519,108590.0,108580.0,0.61860734]
[1756526592745,0.18519,108590.0,108580.0,0.18920599]
[1756526592956,0.18419,108590.0,108580.0,0.19120599]
[1756526593379,0.18419,108590.0,108580.0,0.19220599]
[1756526597892,0.36836902,108590.0,108580.0,0.19220599]
[1756526598962,0.18419,108590.0,108580.0,0.19220599]
[1756526599809,0.36836902,108590.0,108580.0,0.19220599]
[1756526600270,1.13825037,108590.0,108580.0,0.00300001]
[1756526600491,1.13855037,108590.0,108580.0,0.00300001]
[1756526601207,1.16623837,108590.0,108580.0,0.00300001]
[1756526602059,1.16593837,108590.0,108580.0,0.00300001]
[1756526602925,0.73653702,108590.0,108580.0,0.00300001]
[1756526603138,1.25423469,108590.0,108580.0,0.00300001]
[1756526603349,0.82483334,108590.0,108580.0,0.00300001]
[1756526603558,1.25423469,108590.0,108580.0,0.00300001]
[1756526603776,1.16593837,108590.0,108580.0,0.00300001]
[1756526604000,0.73653702,108590.0,108580.0,0.00300001]
[1756526604231,1.16593837,108590.0,108580.0,0.00300001]
[1756526607942,0.73653702,108590.0,108580.0,0.00300001]
[1756526608185,1.16593837,108590.0,108580.0,0.00300001]
[1756526609906,1.2062518,108590.0,108580.0,0.00300001]
[1756526610396,1.3619318,108590.0,108580.0,0.00300001]
[1756526612181,1.3619318,108590.0,108580.0,0.00200001]
[1756526613399,1.3619318,108590.0,108580.0,1e-08]
[1756526613642,1.32161837,108590.0,108580.0,0.00627001]
[1756526613873,0.89173702,108590.0,108580.0,0.00527001]
[1756526614305,0.73605702,108590.0,108580.0,0.00627001]
[1756526616643,0.89173702,108590.0,108580.0,0.00627001]
[1756526616894,0.83797039,108590.0,108580.0,0.00627001]
[1756526618372,0.83845039,108590.0,108580.0,0.00627001]
[1756526618742,1.26785174,108590.0,108580.0,0.00627001]
[1756526618906,1.26737174,108590.0,108580.0,0.00627001]
[1756526620165,0.83797039,108590.0,108580.0,0.00627001]
[1756526621102,1.26737174,108590.0,108580.0,0.00627001]
[1756526621306,1.11169174,108590.0,108580.0,0.00627001]
[1756526621677,0.68229039,108590.0,108580.0,0.00627001]
[1756526624514,0.68277039,108590.0,108580.0,0.00627001]
[1756526625140,0.68229039,108590.0,108580.0,0.00627001]
[1756526625778,0.83797039,108590.0,108580.0,0.00627001]
[1756526625985,0.83845039,108590.0,108580.0,0.00100001]
[1756526626156,1.35614806,108590.0,108580.0,0.00100001]
[1756526627724,1.35644806,108590.0,108580.0,0.00100001]
[1756526627936,1.44942807,108590.0,108580.0,0.00100001]
[1756526630506,1.44912807,108590.0,108580.0,0.00100001]
[1756526633041,1.01972672,108590.0,108580.0,0.00100001]
[1756526633251,1.36083175,108590.0,108580.0,0.00100001]
[1756526636215,0.9314304,108590.0,108580.0,0.00100001]
[1756526636422,1.36083175,108590.0,108580.0,0.00100001]
[1756526637095,1.20515175,108590.0,108580.0,0.00100001]
[1756526637338,1.36079175,108590.0,108580.0,0.00413001]
[1756526637917,1.44908807,108590.0,108580.0,0.00413001]
[1756526638142,1.44908807,108590.0,108580.0,0.00100001]
[1756526639499,1.44908807,108590.0,108580.0,0.00413001]
[1756526639646,1.36031175,108590.0,108580.0,0.00622001]
[1756526640028,1.36079175,108590.0,108580.0,0.00622001]
[1756526640577,1.20515175,108590.0,108580.0,0.00622001]
[1756526640778,1.36079175,108590.0,108580.0,0.00622001]
[1756526642402,0.7757504,108590.0,108580.0,0.00622001]
[1756526642634,1.36079175,108590.0,108580.0,0.00413001]
[1756526643101,1.36079175,108590.0,108580.0,0.00100001]
[1756526647562,1.37838054,108590.0,108580.0,0.00100001]
[1756526647785,1.39931936,108590.0,108580.0,0.00100001]
[1756526648404,1.39932082,108590.0,108580.0,0.00100001]
[1756526648616,1.39932082,108590.0,108580.0,1e-08]
[1756526648826,1.48761714,108590.0,108580.0,1e-08]
[1756526649034,1.48961714,108590.0,108580.0,1e-08]
[1756526649248,1.48861714,108590.0,108580.0,1e-08]
[1756526649673,1.48961714,108590.0,108580.0,1e-08]
[1756526650089,1.49161714,108590.0,108580.0,1e-08]
[1756526650519,1.94739586,108590.0,108580.0,1e-08]
[1756526651159,1.51799451,108590.0,108580.0,1e-08]
[1756526651396,1.92101849,108590.0,108580.0,1e-08]
[1756526651817,1.91901849,108590.0,108580.0,1e-08]
[1756526652234,1.92101849,108590.0,108580.0,1e-08]
[1756526652441,1.91901849,108590.0,108580.0,1e-08]
[1756526652635,1.96954041,108590.0,108580.0,1e-08]
[1756526652895,1.97154041,108590.0,108580.0,1e-08]
[1756526653373,1.96954041,108590.0,108580.0,1e-08]
[1756526653598,1.94537709,108590.0,108580.0,1e-08]
[1756526653827,0.93093439,108590.0,108580.0,1e-08]
[1756526654016,1.51796553,108590.0,108580.0,1e-08]
[1756526658322,1.49809017,108590.0,108580.0,1e-08]
[1756526658535,1.49161714,108590.0,108580.0,1e-08]
[1756526658961,1.49156159,108590.0,108580.0,1e-08]
[1756526659363,1.47432689,108590.0,108580.0,1e-08]
[1756526659595,1.49156111,108590.0,108580.0,1e-08]
[1756526660753,1.33562111,108590.0,108580.0,1e-08]
[1756526660978,1.49126111,108590.0,108580.0,1e-08]
[1756526661165,1.33562111,108590.0,108580.0,1e-08]
[1756526661408,1.49126111,108590.0,108580.0,1e-08]
[1756526662726,1.49156111,108590.0,108580.0,1e-08]
[1756526663662,1.49126111,108590.0,108580.0,1e-08]
[1756526667352,1.7654216,108590.0,108580.0,1e-08]
[1756526667539,1.9210616,108590.0,108580.0,1e-08]
[1756526667951,1.7411736,108590.0,108580.0,1e-08]
[1756526668151,1.9253636,108590.0,108580.0,1e-08]
[1756526669555,1.93182765,108590.0,108580.0,1e-08]
[1756526670005,1.93182795,108590.0,108580.0,1e-08]
[1756526670435,2.36142887,108590.0,108580.0,1e-08]
[1756526670646,1.93182795,108590.0,108580.0,1e-08]
[1756526671221,1.93182961,108590.0,108580.0,1e-08]
[1756526673291,1.95169739,108590.0,108580.0,1e-08]
[1756526674099,2.38129831,108590.0,108580.0,1e-08]
[1756526676774,2.38130912,108590.0,108580.0,1e-08]
[1756526678143,1.09250636,108590.0,108580.0,1e-08]
[1756526678367,1.7960682,108590.0,108580.0,0.00307001]
[1756526678555,1.9517082,108590.0,108580.0,0.00307001]
[1756526678981,1.70729188,108590.0,108580.0,0.00523001]
[1756526679191,1.52293188,108590.0,108580.0,0.00523001]
[1756526679386,1.51645737,108590.0,108580.0,0.00523001]
[1756526679626,1.04604985,108590.0,108580.0,0.00523001]
[1756526679824,1.38604985,108590.0,108580.0,0.00523001]
[1756526680035,0.95644893,108590.0,108580.0,0.00523001]
[1756526680252,1.04609811,108590.0,108580.0,0.00523001]
[1756526680466,0.89045811,108590.0,108580.0,0.00523001]
[1756526680674,1.04609811,108590.0,108580.0,0.00523001]
[1756526680897,1.38609811,108590.0,108580.0,0.00523001]
[1756526681112,1.38608714,108590.0,108580.0,0.00523001]
[1756526681326,1.38190291,108590.0,108580.0,0.00523001]
[1756526681579,1.38290291,108590.0,108580.0,0.00523001]
[1756526682273,1.38190291,108590.0,108580.0,0.00523001]
[1756526682637,1.47019923,108590.0,108580.0,0.00523001]
[1756526683341,1.45292541,108590.0,108580.0,0.00523001]
[1756526690870,1.45392541,108590.0,108580.0,0.00523001]
[1756526691037,1.45492541,108590.0,108580.0,0.00523001]
[1756526691409,1.45392541,108590.0,108580.0,0.00523001]
[1756526691817,1.45292541,108590.0,108580.0,0.00523001]
[1756526694142,1.45392541,108590.0,108580.0,0.00523001]
[1756526694296,1.02550872,108590.0,108580.0,0.00523001]
[1756526694502,1.36662909,108590.0,108580.0,0.00523001]
[1756526695525,1.36710909,108590.0,108580.0,0.00523001]
[1756526696077,1.36662909,108590.0,108580.0,0.00523001]
[1756526696961,1.36562909,108590.0,108580.0,0.00523001]
[1756526698131,1.36662909,108590.0,108580.0,0.00523001]
[1756526698553,1.45492541,108590.0,108580.0,0.00523001]
[1756526698761,1.45540541,108590.0,108580.0,0.00523001]
[1756526699680,1.47634423,108590.0,108580.0,1e-08]
[1756526699899,1.49388908,108590.0,108580.0,1e-08]
[1756526700538,1.92330577,108590.0,108580.0,1e-08]
[1756526700715,1.49288908,108590.0,108580.0,1e-08]
[1756526700967,1.49250908,108590.0,108580.0,1e-08]
[1756526701173,1.3827961,108590.0,108580.0,0.00491001]
[1756526701377,1.36554909,108590.0,108580.0,0.00491001]
[1756526701755,1.36454909,108590.0,108580.0,0.00491001]
[1756526701987,1.36654909,108590.0,108580.0,0.00491001]
[1756526702198,0.7815724,108590.0,108580.0,0.00491001]
[1756526702402,1.21298909,108590.0,108580.0,0.00491001]
[1756526702609,1.36654909,108590.0,108580.0,0.00491001]
[1756526703452,1.21098909,108590.0,108580.0,0.00491001]
[1756526703733,0.7795724,108590.0,108580.0,0.00491001]
[1756526703991,0.9351324,108590.0,108580.0,0.00491001]
[1756526704182,1.36454909,108590.0,108580.0,0.00491001]
[1756526704395,1.45284541,108590.0,108580.0,0.00491001]
[1756526705020,1.45284541,108590.0,108580.0,0.00591001]
[1756526707996,1.36450909,108590.0,108580.0,0.00591001]
[1756526709439,1.36441709,108590.0,108580.0,0.00591001]
[1756526723106,1.36489709,108590.0,108580.0,0.00591001]
[1756526724706,1.36441709,108590.0,108580.0,0.00591001]
[1756526726359,1.20889709,108590.0,108580.0,0.00591001]
[1756526726534,1.36433709,108590.0,108580.0,0.00591001]
[1756526726948,1.36429708,108590.0,108580.0,0.00591001]
[1756526728543,0.93488039,108590.0,108580.0,0.00591001]
[1756526729742,1.36429708,108590.0,108580.0,0.00591001]
[1756526731026,0.77944039,108590.0,108580.0,0.00591001]
[1756526731243,0.18419,108590.0,108580.0,0.62182512]
[1756526731454,0.18419,108590.0,108580.0,0.19010599]
[1756526731658,0.18419,108590.0,108580.0,0.34554599]
[1756526734577,0.18419,108590.0,108580.0,0.77496268]
[1756526736021,0.18419,108590.0,108580.0,0.77396268]
[1756526736187,0.18419,108590.0,108580.0,0.77696268]
[1756526736388,0.18419,108590.0,108580.0,0.77896268]
[1756526739138,0.18419,108590.0,108580.0,0.77892268]
[1756526739673,0.18419,108590.0,108580.0,0.87190269]
[1756526740138,0.18419,108590.0,108580.0,0.89958369]
[1756526741457,0.18419,108590.0,108580.0,0.89954369]
[1756526744106,0.18419,108590.0,108580.0,0.74418369]
[1756526744326,0.36884902,108590.0,108580.0,0.00991001]
[1756526744564,0.36884902,108590.0,108580.0,0.16036001]
[1756526744979,0.36884902,108590.0,108580.0,0.00500001]
[1756526745185,0.79826571,108590.0,108580.0,0.16036001]
[1756526745934,0.79826571,108590.0,108580.0,0.15836001]
[1756526746139,0.79826571,108590.0,108580.0,0.15536001]
[1756526746360,0.79826571,108590.0,108580.0,0.15636001]
[1756526746572,0.79826571,108590.0,108580.0,0.15836001]
[1756526746775,0.79826571,108590.0,108580.0,0.15736001]
[1756526747210,0.79826571,108590.0,108580.0,0.15836001]
[1756526747949,0.79826571,108590.0,108580.0,0.00300001]
[1756526748128,0.79826571,108590.0,108580.0,0.15832001]
[1756526749122,0.88656203,108590.0,108580.0,0.15832001]
[1756526749344,1.23154572,108590.0,108580.0,0.15832001]
[1756526749549,1.23154572,108590.0,108580.0,0.00300001]
[1756526749790,1.25923372,108590.0,108580.0,0.00300001]
[1756526750018,1.41425372,108590.0,108580.0,0.00300001]
[1756526750454,1.41425372,108590.0,108580.0,1e-08]
[1756526751003,1.4948912,108590.0,108580.0,1e-08]
[1756526752228,1.25893372,108590.0,108580.0,0.00517001]
[1756526752434,0.98483703,108590.0,108580.0,0.00517001]
[1756526753648,0.89185702,108590.0,108580.0,0.00517001]
[1756526753859,0.89185702,108590.0,108580.0,0.00717001]
[1756526754079,0.39653702,108590.0,108580.0,0.00717001]
[1756526754296,0.39605702,108590.0,108580.0,0.00947245]
[1756526754502,0.39605702,108590.0,108580.0,0.00717001]
[1756526755274,0.39605702,108590.0,108580.0,0.00817001]
[1756526756174,0.18419,108590.0,108580.0,0.62408512]
[1756526756387,0.18419,108590.0,108580.0,0.62178268]
[1756526760707,0.18419,108590.0,108580.0,0.69258268]
[1756526761589,0.18419,108590.0,108580.0,0.78556269]
[1756526762012,0.16720406,108610.0,108600.0,0.18416206]
[1756526762205,0.13952106,108610.0,108600.0,0.34153206]
[1756526762428,0.13952106,108610.0,108600.0,0.34461206]
[1756526763293,0.39650077,108620.0,108610.0,0.1841451]
[1756526763483,0.39698077,108620.0,108600.0,0.76885875]
[1756526763890,0.39698077,108620.0,108610.0,0.00308]
[1756526764142,0.24170077,108620.0,108610.0,0.00308]
[1756526764347,0.39698077,108620.0,108610.0,0.15528]
[1756526764747,0.1841451,108610.0,108600.0,0.34552206]
[1756526764885,0.1841451,108610.0,108600.0,0.34761206]
[1756526765128,0.1841451,108610.0,108600.0,0.34661206]
[1756526765864,0.39650077,108620.0,108600.0,0.34661206]
[1756526766078,0.21353977,108620.0,108610.0,0.1872251]
[1756526766289,0.21453977,108620.0,108610.0,0.1893151]
[1756526766699,0.21353977,108620.0,108610.0,0.1893151]
[1756526767679,0.21401977,108620.0,108610.0,0.15528]
[1756526768309,0.21401977,108620.0,108610.0,0.15836]
[1756526768508,0.21401977,108620.0,108610.0,0.16066181]
[1756526768708,0.21401977,108620.0,108610.0,0.16166181]
[1756526768918,0.21401977,108620.0,108610.0,0.15936]
[1756526769625,1.16501279,108620.0,108610.0,0.001]
[1756526770604,0.18416206,108600.0,108590.0,0.15832]
[1756526770938,0.18416206,108600.0,108590.0,0.16041]
[1756526771142,0.18464206,108600.0,108590.0,0.15832]
[1756526771345,0.18464206,108600.0,108590.0,0.15524]
[1756526771575,0.18416206,108600.0,108590.0,0.16041]
[1756526771775,0.18416206,108600.0,108590.0,0.34658902]
[1756526772476,0.18416206,108600.0,108590.0,0.34858902]
[1756526773785,0.2118271,108610.0,108600.0,0.18416206]
[1756526773997,0.2118271,108610.0,108600.0,0.61874875]
[1756526774441,0.1841451,108610.0,108600.0,0.61874875]
[1756526774881,0.56101355,108620.0,108600.0,0.61874875]
[1756526775080,0.56101355,108620.0,108600.0,0.61666875]
[1756526775309,0.53333455,108620.0,108610.0,0.15832]
[1756526775522,0.53381455,108620.0,108610.0,0.15832]
[1756526776462,0.1841451,108610.0,108600.0,0.15624]
[1756526776662,0.1841451,108610.0,108600.0,0.001]
[1756526776863,0.1846251,108610.0,108600.0,0.001]
[1756526777079,0.61404179,108610.0,108600.0,0.1562]
[1756526777279,0.61404179,108610.0,108600.0,0.1552]
[1756526777684,0.1846251,108610.0,108600.0,0.1552]
[1756526778305,0.1846251,108610.0,108600.0,0.16037]
[1756526778513,0.1841451,108610.0,108600.0,0.16467202]
[1756526778717,0.1841451,108610.0,108600.0,0.77594875]
[1756526779126,0.1841451,108610.0,108600.0,0.16237]
[1756526779555,0.1846251,108610.0,108600.0,0.1572]
[1756526779909,0.1841451,108610.0,108600.0,0.34637206]
[1756526780109,0.1841451,108610.0,108600.0,0.16221]
[1756526781897,0.1846251,108610.0,108600.0,0.16221]
[1756526783173,0.34853455,108620.0,108600.0,0.77809077]
[1756526783390,0.34853455,108620.0,108600.0,0.77278875]
[1756526783593,0.34853455,108620.0,108610.0,0.003]
[1756526783716,0.34901455,108620.0,108610.0,0.003]
[1756526783933,0.34901455,108620.0,108610.0,0.00501]
[1756526784971,0.34853455,108620.0,108610.0,0.00501]
[1756526785176,0.1841451,108610.0,108600.0,0.77177875]
[1756526785390,0.1841451,108610.0,108600.0,0.77378875]
[1756526786435,0.1841451,108610.0,108600.0,0.77578875]
[1756526786609,0.1841451,108610.0,108600.0,0.34637206]
[1756526786817,0.1841451,108610.0,108600.0,0.77578875]
[1756526787815,0.1841451,108610.0,108600.0,0.34637206]
[1756526787966,0.1841451,108610.0,108600.0,0.77578875]
[1756526788369,0.1841451,108610.0,108600.0,0.77778875]
[1756526789071,0.19333455,108620.0,108600.0,0.34837206]
[1756526789378,0.19333455,108620.0,108610.0,0.003]
[1756526789602,0.19381455,108620.0,108610.0,0.00501]
[1756526790602,0.1841451,108610.0,108600.0,0.002]
[1756526790778,0.1841451,108610.0,108600.0,0.1572]
[1756526790978,0.1846251,108610.0,108600.0,0.1612]
[1756526791278,0.1841451,108610.0,108600.0,0.34537206]
[1756526791513,0.1841451,108610.0,108600.0,0.34437206]
[1756526791730,0.1841451,108610.0,108600.0,0.34537206]
[1756526791878,0.1841451,108610.0,108600.0,0.34637206]
[1756526792858,0.1841451,108610.0,108600.0,0.34837206]
[1756526793133,0.1841451,108610.0,108600.0,0.16421]
[1756526793759,0.1846251,108610.0,108600.0,0.16417]
[1756526793972,0.1846251,108610.0,108600.0,0.00901]
[1756526794173,0.1846251,108610.0,108600.0,0.16417]
[1756526796201,0.82628012,108620.0,108600.0,0.16417]
[1756526796401,0.61356179,108610.0,108600.0,0.15916]
[1756526796612,0.61356179,108610.0,108600.0,0.004]
[1756526797137,0.61356179,108610.0,108600.0,0.002]
[1756526797291,0.1841451,108610.0,108600.0,0.002]
[1756526797493,0.18416206,108600.0,108590.0,0.15816]
[1756526797704,0.18416206,108600.0,108590.0,0.16017]
[1756526799117,0.18416206,108600.0,108590.0,0.16217]
[1756526799720,0.18416206,108600.0,108590.0,0.00701]
[1756526799925,0.18416206,108600.0,108590.0,0.16217]
[1756526800849,0.18416206,108600.0,108590.0,0.16417]
[1756526804899,0.18416206,108600.0,108590.0,0.34834902]
[1756526808457,0.3392651,108610.0,108590.0,0.34834902]
[1756526808668,0.3392651,108610.0,108600.0,0.003]
[1756526809194,0.3392651,108610.0,108600.0,0.00516]
[1756526810278,0.3392651,108610.0,108600.0,0.00616]
[1756526812154,0.3392651,108610.0,108600.0,0.00716]
[1756526812375,0.1841451,108610.0,108600.0,0.16228]
[1756526820368,0.1841451,108610.0,108600.0,0.00716]
[1756526820585,0.1841451,108610.0,108600.0,0.16224]
[1756526822555,0.1841451,108610.0,108600.0,0.34640206]
[1756526822742,0.1841451,108610.0,108600.0,0.16224]
[1756526822868,0.1841451,108610.0,108600.0,0.00716]
[1756526823072,0.1841451,108610.0,108600.0,0.16224]
[1756526827718,0.1841451,108610.0,108600.0,0.34640206]
[1756526828358,0.20317536,108620.0,108600.0,0.77581875]
[1756526828564,0.67057336,108620.0,108610.0,0.00303]
[1756526828772,0.51549336,108620.0,108610.0,0.00519]
[1756526829197,0.51549336,108620.0,108610.0,0.1893351]
[1756526829858,0.44687676,108630.0,108610.0,0.1893351]
[1756526829859,0.22099676,108630.0,108610.0,0.61875179]
[1756526830077,0.46905677,108630.0,108610.0,0.61572179]
[1756526830281,0.80905677,108630.0,108620.0,0.00303]
[1756526830487,0.80901677,108630.0,108620.0,0.00519]
[1756526830695,0.78133677,108630.0,108620.0,0.00519]
[1756526831464,0.78181281,108630.0,108620.0,0.00519]
[1756526833023,0.78181281,108630.0,108620.0,0.00619]
[1756526833259,0.59770161,108630.0,108620.0,0.00619]
[1756526834064,0.78184411,108630.0,108620.0,0.00619]
[1756526835506,0.80952311,108630.0,108620.0,0.00619]
[1756526836122,1.2389398,108630.0,108620.0,0.00619]
[1756526838523,1.2389398,108630.0,108620.0,0.00403]
[1756526839085,1.2389398,108630.0,108620.0,0.001]
[1756526839404,1.2389398,108630.0,108620.0,0.00409]
[1756526841555,1.2388998,108630.0,108620.0,0.00409]
[1756526842329,1.32719612,108630.0,108620.0,0.001]
[1756526842505,0.80948311,108630.0,108620.0,0.001]
[1756526842661,1.2388998,108630.0,108620.0,0.00409]
[1756526843296,1.0838998,108630.0,108620.0,0.00409]
[1756526843498,1.2388998,108630.0,108620.0,0.00409]
[1756526844516,1.9705628,108630.0,108620.0,0.00409]
[1756526844854,2.1255628,108630.0,108620.0,0.00409]
[1756526847118,2.15768934,108630.0,108620.0,0.00409]
[1756526847326,2.1255628,108630.0,108620.0,0.00409]
[1756526847672,1.9705628,108630.0,108620.0,0.00409]
[1756526847892,2.1255628,108630.0,108620.0,0.00409]
[1756526848104,1.69614611,108630.0,108620.0,0.00605]
[1756526848326,2.1255628,108630.0,108620.0,0.00409]
[1756526851314,2.1255628,108630.0,108620.0,0.00605]
[1756526851531,2.16921055,108630.0,108620.0,0.00409]
[1756526851760,2.1255628,108630.0,108620.0,0.00409]
[1756526857481,2.12523757,108630.0,108620.0,0.00409]
[1756526858295,1.97023757,108630.0,108620.0,0.00605]
[1756526858494,2.12519757,108630.0,108620.0,0.00605]
[1756526867206,1.69610611,108630.0,108620.0,0.00605]
[1756526867410,2.03221756,108630.0,108620.0,0.00605]
[1756526868300,1.6030861,108630.0,108620.0,0.00605]
[1756526868499,2.03217756,108630.0,108620.0,0.00605]
[1756526871200,1.6030861,108630.0,108620.0,0.00605]
[1756526871406,2.03217756,108630.0,108620.0,0.00605]
[1756526872512,1.09896054,108630.0,108620.0,0.43514146]
[1756526872735,1.25388054,108630.0,108620.0,0.00605]
[1756526872935,1.25388054,108630.0,108620.0,0.43744306]
[1756526873157,1.25388054,108630.0,108620.0,0.00605]
[1756526873378,1.25388054,108630.0,108620.0,0.0083516]
[1756526873815,1.25388054,108630.0,108620.0,0.43744306]
[1756526874030,1.07125024,108630.0,108620.0,0.61926961]
[1756526874244,1.07125024,108630.0,108620.0,0.43514146]
[1756526875714,1.07125024,108630.0,108620.0,0.43414146]
[1756526875927,1.07125024,108630.0,108620.0,0.61826961]
[1756526876147,1.07125024,108630.0,108620.0,0.62026961]
[1756526876350,1.07125024,108630.0,108620.0,0.77518961]
[1756526877592,1.07125024,108630.0,108620.0,0.77618961]
[1756526879208,1.07125024,108630.0,108620.0,0.62126961]
[1756526879425,1.07125024,108630.0,108620.0,0.77618961]
[1756526880686,0.88713904,108630.0,108620.0,0.77618961]
[1756526882333,0.88713904,108630.0,108620.0,0.38841076]
[1756526882564,0.88713904,108630.0,108620.0,0.81750222]
[1756526882774,0.88713904,108630.0,108620.0,0.84517522]
[1756526883762,0.88713904,108630.0,108620.0,0.69025522]
[1756526883970,0.88713904,108630.0,108620.0,0.84513522]
[1756526884230,0.88713904,108630.0,108620.0,0.26116376]
[1756526884433,0.88713904,108630.0,108620.0,0.84513522]
[1756526889077,0.88713904,108630.0,108620.0,0.69025522]
[1756526889281,0.88713904,108630.0,108620.0,0.84313522]
[1756526889960,0.88713904,108630.0,108620.0,0.84513522]
[1756526890415,0.88713904,108630.0,108620.0,0.84413522]
[1756526890739,0.88713904,108630.0,108620.0,0.84613522]
[1756526893921,0.88713904,108630.0,108620.0,0.26216376]
[1756526894105,1.3162305,108630.0,108620.0,0.41704376]
[1756526894353,0.88713904,108630.0,108620.0,0.84613522]
[1756526894545,0.88713904,108630.0,108620.0,0.93911523]
[1756526897222,0.88713904,108630.0,108620.0,0.93907523]
[1756526899232,0.88713904,108630.0,108620.0,0.35514377]
[1756526899462,0.88713904,108630.0,108620.0,0.93907523]
[1756526901752,0.88713904,108630.0,108620.0,0.52844377]
[1756526901958,0.88713904,108630.0,108620.0,0.93907523]
[1756526903788,0.88713904,108630.0,108620.0,0.50998377]
[1756526903998,0.88713904,108630.0,108620.0,0.93907523]
[1756526907439,0.88713904,108630.0,108620.0,0.93903523]
[1756526909311,0.88713904,108630.0,108620.0,0.35514377]
[1756526909518,1.5003417,108630.0,108620.0,0.35009377]
[1756526909728,1.3162305,108630.0,108620.0,0.50489377]
[1756526910359,1.3162305,108630.0,108620.0,0.50792377]
[1756526913170,0.88713904,108630.0,108620.0,0.50792377]
[1756526913418,1.3162305,108630.0,108620.0,0.50792377]
[1756526915862,0.88713904,108630.0,108620.0,0.51001377]
[1756526916091,1.3162305,108630.0,108620.0,0.51001377]
[1756526916846,0.88713904,108630.0,108620.0,0.51001377]
[1756526917050,1.3162305,108630.0,108620.0,0.51001377]
[1756526917533,1.3162305,108630.0,108620.0,0.50792377]
[1756526917907,0.88713904,108630.0,108620.0,0.46661116]
[1756526918118,1.3162305,108630.0,108620.0,0.46661116]
[1756526918489,0.88713904,108630.0,108620.0,0.46870116]
[1756526918713,1.3162305,108630.0,108620.0,0.46870116]
[1756526920359,0.88713904,108630.0,108620.0,0.46870116]
[1756526920568,1.3162305,108630.0,108620.0,0.46870116]
[1756526921779,0.88713904,108630.0,108620.0,0.46870116]
[1756526921944,1.3162305,108630.0,108620.0,0.46870116]
[1756526922450,1.3162305,108630.0,108620.0,0.46661116]
[1756526922808,0.88713904,108630.0,108620.0,0.46870116]
[1756526922946,1.3162305,108630.0,108620.0,0.46870116]
[1756526923488,0.88713904,108630.0,108620.0,0.46870116]
[1756526923630,1.3162305,108630.0,108620.0,0.46870116]
[1756526928415,0.88713904,108630.0,108620.0,0.46870116]
[1756526928597,1.3162305,108630.0,108620.0,0.46870116]
[1756526928981,0.88713904,108630.0,108620.0,0.46870116]
[1756526929208,1.3162305,108630.0,108620.0,0.46870116]
[1756526929416,0.88713904,108630.0,108620.0,0.46870116]
[1756526929617,1.3162305,108630.0,108620.0,0.46870116]
[1756526930003,0.88713904,108630.0,108620.0,0.46870116]
[1756526931027,0.88713904,108630.0,108620.0,0.89779262]
[1756526932479,0.88713904,108630.0,108620.0,0.93958228]
[1756526939470,0.88713904,108630.0,108620.0,1.36867374]
[1756526942774,0.88713904,108630.0,108620.0,1.36859374]
[1756526942979,0.88713904,108630.0,108620.0,1.38953256]
[1756526943702,0.88713904,108630.0,108620.0,1.72953256]
[1756526944306,0.67703547,108630.0,108620.0,1.72953256]
[1756526945556,0.67703547,108630.0,108620.0,1.57481256]
[1756526945732,0.67703547,108630.0,108620.0,1.72953256]
[1756526947145,0.67703547,108630.0,108620.0,1.57481256]
[1756526947352,0.67703547,108630.0,108620.0,1.73009256]
[1756526947946,0.67703547,108630.0,108620.0,1.6883029]
[1756526948349,0.67703547,108630.0,108620.0,0.83011998]
[1756526948630,0.67703547,108630.0,108620.0,1.6883029]
[1756526950101,0.67703547,108630.0,108620.0,1.6883829]
[1756526950635,0.67703547,108630.0,108620.0,1.9095829]
[1756526953467,0.67703547,108630.0,108620.0,1.7542229]
[1756526953677,0.67703547,108630.0,108620.0,1.9095029]
[1756526954751,0.67703547,108630.0,108620.0,1.9094629]
[1756526955440,0.67703547,108630.0,108620.0,1.7542229]
[1756526955633,0.67703547,108630.0,108620.0,1.9094229]
[1756526955836,0.67703547,108630.0,108620.0,1.7542229]
[1756526956043,0.67703547,108630.0,108620.0,1.9094229]
[1756526956290,0.67703547,108630.0,108620.0,1.9093829]
[1756526957003,0.67703547,108630.0,108620.0,2.0093829]
[1756526957212,0.67703547,108630.0,108620.0,2.0490429]
[1756526958227,0.67703547,108630.0,108620.0,2.0470429]
[1756526958583,0.67703547,108630.0,108620.0,2.0530429]
[1756526958794,0.67703547,108630.0,108620.0,2.0510429]
[1756526958979,0.67703547,108630.0,108620.0,2.0540429]
[1756526959549,0.67703547,108630.0,108620.0,2.0510429]
[1756526959745,0.67703547,108630.0,108620.0,1.19285998]
[1756526959919,0.67703547,108630.0,108620.0,1.19685998]
[1756526960129,0.67703547,108630.0,108620.0,2.0550429]
[1756526962174,0.67703547,108630.0,108620.0,1.8998829]
[1756526962584,0.67703547,108630.0,108620.0,2.0549629]
[1756526962989,0.67703547,108630.0,108620.0,1.8998829]
[1756526963208,0.67703547,108630.0,108620.0,2.09623402]
[1756526963506,0.67703547,108630.0,108620.0,1.94115402]
[1756526963667,0.67703547,108630.0,108620.0,2.09619402]
[1756526965546,0.67703547,108630.0,108620.0,2.52528548]
[1756526966003,0.67703547,108630.0,108620.0,2.09619402]
[1756526966459,0.67703547,108630.0,108620.0,1.2380111]
[1756526966586,0.67703547,108630.0,108620.0,2.09619402]
[1756526966947,0.67703547,108630.0,108620.0,2.04406402]
[1756526967143,0.67703547,108630.0,108620.0,1.99410402]
[1756526967596,0.67703547,108630.0,108620.0,2.04410402]
[1756526967801,0.67703547,108630.0,108620.0,2.03810402]
[1756526967982,0.67703547,108630.0,108620.0,2.03609402]
[1756526968194,0.67703547,108630.0,108620.0,1.88405402]
[1756526968407,0.67703547,108630.0,108620.0,2.04109402]
[1756526976350,0.67703547,108630.0,108620.0,1.99109402]
[1756526976573,0.67703547,108630.0,108620.0,2.04109402]
[1756526976783,0.67703547,108630.0,108620.0,2.05478586]
[1756526977191,0.67703547,108630.0,108620.0,1.19660294]
[1756526977402,0.67703547,108630.0,108620.0,2.05478586]
[1756526978020,0.67703547,108630.0,108620.0,2.01351474]